[Event "Early-Titled-Tuesday-Blitz-October-10-2023"]
[Site "Chess.com"]
[Date "2023.10.10"]
[Round "3"]
[White "kikoveiga"]
[Black "ylr5000"]
[Result "1-0"]
[WhiteElo "2638"]
[BlackElo "2464"]
[TimeControl "180+1"]
[EndTime "8:28:28 PDT"]
[Termination "kikoveiga won by resignation"]

1. g3 {[%clk 0:02:47.5]} 1... d5 {[%clk 0:02:59.8]} 2. Bg2 {[%clk 0:02:48.4]}
2... g6 {[%clk 0:02:59.9]} 3. c4 {[%clk 0:02:44.3]} 3... dxc4 {[%clk 0:02:59.1]}
4. Nf3 {[%clk 0:02:43.2]} 4... Nf6 {[%clk 0:02:59]} 5. O-O {[%clk 0:02:43.5]}
5... Bg7 {[%clk 0:02:58.9]} 6. Na3 {[%clk 0:02:44.2]} 6... O-O {[%clk
0:02:59.3]} 7. Nxc4 {[%clk 0:02:43.9]} 7... Be6 {[%clk 0:02:58.3]} 8. d3 {[%clk
0:02:43.2]} 8... Nbd7 {[%clk 0:02:56.4]} 9. Be3 {[%clk 0:02:38.9]} 9... Bxc4
{[%clk 0:02:54.7]} 10. dxc4 {[%clk 0:02:38]} 10... c6 {[%clk 0:02:55.6]} 11. Qc2
{[%clk 0:02:37.3]} 11... Ng4 {[%clk 0:02:52.6]} 12. Bf4 {[%clk 0:02:34.3]} 12...
e5 {[%clk 0:02:52.2]} 13. Bg5 {[%clk 0:02:33.7]} 13... f6 {[%clk 0:02:51.8]} 14.
Bd2 {[%clk 0:02:33]} 14... f5 {[%clk 0:02:49.5]} 15. Bg5 {[%clk 0:02:28.3]}
15... Qe8 {[%clk 0:02:47.9]} 16. Rad1 {[%clk 0:02:20.1]} 16... h6 {[%clk
0:02:42.5]} 17. Bc1 {[%clk 0:02:19.6]} 17... e4 {[%clk 0:02:42.4]} 18. Nd4
{[%clk 0:02:18.7]} 18... Rd8 {[%clk 0:02:39.2]} 19. h3 {[%clk 0:02:16.2]} 19...
Ngf6 {[%clk 0:02:37.4]} 20. e3 {[%clk 0:02:15.3]} 20... Ne5 {[%clk 0:02:36.8]}
21. b3 {[%clk 0:02:12.7]} 21... Nd3 {[%clk 0:02:32]} 22. Ba3 {[%clk 0:02:12.2]}
22... Rf7 {[%clk 0:02:32.5]} 23. Rd2 {[%clk 0:02:05.4]} 23... Rfd7 {[%clk
0:02:33]} 24. Rfd1 {[%clk 0:02:05.7]} 24... Nh7 {[%clk 0:02:32.4]} 25. Ne2
{[%clk 0:01:53.7]} 25... Ng5 {[%clk 0:02:26.6]} 26. Nf4 {[%clk 0:01:39.9]} 26...
Nxf4 {[%clk 0:02:19.6]} 27. gxf4 {[%clk 0:01:40.8]} 27... Ne6 {[%clk 0:01:47.8]}
28. c5 {[%clk 0:01:28.3]} 28... g5 {[%clk 0:01:06.5]} 29. fxg5 {[%clk
0:01:23.8]} 29... Nxg5 {[%clk 0:01:07.4]} 30. Rxd7 {[%clk 0:01:21.3]} 30... Rxd7
{[%clk 0:01:07.1]} 31. Rxd7 {[%clk 0:01:21.6]} 31... Qxd7 {[%clk 0:01:07.8]} 32.
h4 {[%clk 0:01:14.6]} 32... Nf7 {[%clk 0:01:06.9]} 33. f4 {[%clk 0:01:03.1]}
33... exf3 {[%clk 0:00:59.6]} 34. Bxf3 {[%clk 0:01:02]} 34... Ne5 {[%clk
0:01:00.5]} 35. Be2 {[%clk 0:01:00.4]} 35... Bf6 {[%clk 0:00:32.8]} 36. Bb2
{[%clk 0:00:55.4]} 36... Kg7 {[%clk 0:00:32.1]} 37. Bd4 {[%clk 0:00:42.5]} 37...
Ng6 {[%clk 0:00:25.6]} 38. Bxf6+ {[%clk 0:00:37.7]} 38... Kxf6 {[%clk
0:00:26.5]} 39. h5 {[%clk 0:00:36.9]} 39... Ne5 {[%clk 0:00:26.2]} 40. Qc3
{[%clk 0:00:28.4]} 40... Qd5 {[%clk 0:00:25.1]} 41. Qd4 {[%clk 0:00:22.7]} 41...
Qxd4 {[%clk 0:00:25.2]} 42. exd4 {[%clk 0:00:23.6]} 42... Nd7 {[%clk 0:00:20.1]}
43. Kf2 {[%clk 0:00:23.9]} 43... Ke6 {[%clk 0:00:20.6]} 44. Ke3 {[%clk
0:00:23.3]} 44... Nf6 {[%clk 0:00:18.1]} 45. Bf3 {[%clk 0:00:17]} 45... Nd5+
{[%clk 0:00:14.2]} 46. Bxd5+ {[%clk 0:00:08.5]} 46... Kxd5 {[%clk 0:00:15.1]}
47. Kf4 {[%clk 0:00:09]} 47... Kxd4 {[%clk 0:00:15.7]} 48. Kxf5 {[%clk
0:00:09.2]} 48... Kxc5 {[%clk 0:00:13.7]} 49. Kg6 {[%clk 0:00:09.7]} 49... Kd6
{[%clk 0:00:14.4]} 50. Kxh6 {[%clk 0:00:10.6]} 50... c5 {[%clk 0:00:14]} 51. Kg7
{[%clk 0:00:11.5]} 51... b5 {[%clk 0:00:14.3]} 52. h6 {[%clk 0:00:11.8]} 52...
c4 {[%clk 0:00:15.2]} 53. bxc4 {[%clk 0:00:12.5]} 53... bxc4 {[%clk 0:00:15.8]}
54. h7 {[%clk 0:00:13.4]} 54... c3 {[%clk 0:00:16.4]} 55. h8=Q {[%clk
0:00:14.3]} 55... c2 {[%clk 0:00:17]} 56. Qh1 {[%clk 0:00:14.9]} 56... Kc5
{[%clk 0:00:17.3]} 57. Qc1 {[%clk 0:00:15.8]} 1-0

[Event "Early-Titled-Tuesday-Blitz-October-10-2023"]
[Site "Chess.com"]
[Date "2023.10.10"]
[Round "3"]
[White "Journey_to_GrandMaster_YT"]
[Black "Cambek64"]
[Result "1-0"]
[WhiteElo "2620"]
[BlackElo "2438"]
[TimeControl "180+1"]
[EndTime "8:28:30 PDT"]
[Termination "Journey_to_GrandMaster_YT won by resignation"]

1. d4 {[%clk 0:03:00]} 1... e6 {[%clk 0:03:00.4]} 2. Nf3 {[%clk 0:02:59.9]} 2...
b6 {[%clk 0:02:57.5]} 3. e4 {[%clk 0:02:59.5]} 3... Bb7 {[%clk 0:02:57]} 4. Bd3
{[%clk 0:02:59.7]} 4... Nf6 {[%clk 0:02:56.4]} 5. Qe2 {[%clk 0:02:59.1]} 5... c5
{[%clk 0:02:55]} 6. c3 {[%clk 0:02:58.9]} 6... d5 {[%clk 0:02:54.3]} 7. e5
{[%clk 0:02:51.8]} 7... Nfd7 {[%clk 0:02:53.9]} 8. O-O {[%clk 0:02:51]} 8... Nc6
{[%clk 0:02:54.3]} 9. Be3 {[%clk 0:02:45.5]} 9... Be7 {[%clk 0:02:50.8]} 10.
Nbd2 {[%clk 0:02:45.3]} 10... g5 {[%clk 0:02:48.3]} 11. Ne1 {[%clk 0:02:44.1]}
11... h5 {[%clk 0:02:47.1]} 12. f4 {[%clk 0:02:43.4]} 12... gxf4 {[%clk
0:02:39.6]} 13. Rxf4 {[%clk 0:02:42.1]} 13... Bg5 {[%clk 0:02:20.3]} 14. Rf2
{[%clk 0:02:41.4]} 14... cxd4 {[%clk 0:02:13.1]} 15. cxd4 {[%clk 0:02:40.4]}
15... Qe7 {[%clk 0:01:18.3]} 16. Nc2 {[%clk 0:02:34.1]} 16... O-O-O {[%clk
0:01:14.9]} 17. Bxg5 {[%clk 0:02:33.5]} 17... Qxg5 {[%clk 0:01:14.7]} 18. Rxf7
{[%clk 0:02:33.7]} 18... Rdg8 {[%clk 0:01:10.7]} 19. Nf3 {[%clk 0:02:20.9]}
19... Qg4 {[%clk 0:01:07.3]} 20. Rc1 {[%clk 0:01:45.8]} 20... Rg7 {[%clk
0:00:57.5]} 21. Ne3 {[%clk 0:01:40.5]} 21... Rxf7 {[%clk 0:00:55.2]} 22. Nxg4
{[%clk 0:01:40.1]} 22... hxg4 {[%clk 0:00:55.6]} 23. Ng5 {[%clk 0:01:39.9]}
23... Re7 {[%clk 0:00:49.8]} 24. Bb5 {[%clk 0:01:31.8]} 24... Nb8 {[%clk
0:00:45.3]} 25. Qxg4 {[%clk 0:01:30.5]} 25... Rg8 {[%clk 0:00:44]} 26. h4 {[%clk
0:01:28.9]} 26... a6 {[%clk 0:00:43.6]} 27. Bf1 {[%clk 0:01:23.8]} 27... Nd7
{[%clk 0:00:41.3]} 28. b4 {[%clk 0:01:15.8]} 28... Kb8 {[%clk 0:00:38.1]} 29. b5
{[%clk 0:01:15.9]} 29... Na5 {[%clk 0:00:22.6]} 30. bxa6 {[%clk 0:01:14.6]}
30... Bc8 {[%clk 0:00:18.3]} 31. Bb5 {[%clk 0:01:07.2]} 31... Nc4 {[%clk
0:00:17.8]} 32. Bxc4 {[%clk 0:00:54.3]} 32... dxc4 {[%clk 0:00:16.1]} 33. Rxc4
{[%clk 0:00:55.2]} 33... Bxa6 {[%clk 0:00:15.8]} 34. Rc6 {[%clk 0:00:53.9]}
34... Bb7 {[%clk 0:00:14.9]} 35. Rxe6 {[%clk 0:00:53.9]} 35... Reg7 {[%clk
0:00:09]} 36. Rd6 {[%clk 0:00:49.2]} 36... Nf8 {[%clk 0:00:09.1]} 37. Rxb6
{[%clk 0:00:46.6]} 37... Nh7 {[%clk 0:00:09.6]} 38. Qe4 {[%clk 0:00:40.9]} 38...
Nxg5 {[%clk 0:00:09.6]} 39. hxg5 {[%clk 0:00:40.4]} 39... Ka7 {[%clk 0:00:10]}
40. Rxb7+ {[%clk 0:00:38.6]} 40... Rxb7 {[%clk 0:00:10.7]} 41. e6 {[%clk
0:00:33.8]} 41... Rbg7 {[%clk 0:00:09]} 42. d5 {[%clk 0:00:31.5]} 42... Rxg5
{[%clk 0:00:07.6]} 43. e7 {[%clk 0:00:26.3]} 43... Kb6 {[%clk 0:00:06.9]} 44. d6
{[%clk 0:00:22.3]} 44... Re8 {[%clk 0:00:07.4]} 45. d7 {[%clk 0:00:21.4]} 1-0

[Event "Early-Titled-Tuesday-Blitz-October-10-2023"]
[Site "Chess.com"]
[Date "2023.10.10"]
[Round "3"]
[White "Antik5"]
[Black "Goi_Manne"]
[Result "0-1"]
[WhiteElo "2490"]
[BlackElo "2303"]
[TimeControl "180+1"]
[EndTime "8:28:31 PDT"]
[Termination "Goi_Manne won on time"]

1. c4 {[%clk 0:03:00.9]} 1... c6 {[%clk 0:02:56]} 2. b3 {[%clk 0:02:57.5]} 2...
d5 {[%clk 0:02:55.5]} 3. Bb2 {[%clk 0:02:58.2]} 3... Nf6 {[%clk 0:02:55.2]} 4.
Nf3 {[%clk 0:02:57.7]} 4... Bf5 {[%clk 0:02:51.9]} 5. g3 {[%clk 0:02:54.3]} 5...
e6 {[%clk 0:02:52.1]} 6. Bg2 {[%clk 0:02:54.8]} 6... Be7 {[%clk 0:02:52.6]} 7.
d3 {[%clk 0:02:53.3]} 7... O-O {[%clk 0:02:52.9]} 8. Nh4 {[%clk 0:02:53.1]} 8...
Bg6 {[%clk 0:02:52.7]} 9. Nxg6 {[%clk 0:02:51.2]} 9... hxg6 {[%clk 0:02:53.6]}
10. O-O {[%clk 0:02:50.7]} 10... Nbd7 {[%clk 0:02:54.2]} 11. Nd2 {[%clk
0:02:50]} 11... a5 {[%clk 0:02:52]} 12. h3 {[%clk 0:02:45]} 12... a4 {[%clk
0:02:43.1]} 13. bxa4 {[%clk 0:02:38.7]} 13... Qa5 {[%clk 0:02:41.4]} 14. e4
{[%clk 0:02:15.9]} 14... dxe4 {[%clk 0:02:35.4]} 15. dxe4 {[%clk 0:02:13.8]}
15... Qxa4 {[%clk 0:02:34]} 16. e5 {[%clk 0:02:03]} 16... Ne8 {[%clk 0:02:30.9]}
17. Ne4 {[%clk 0:01:58.9]} 17... Nc5 {[%clk 0:02:26.4]} 18. Nxc5 {[%clk
0:01:41.6]} 18... Bxc5 {[%clk 0:02:27.3]} 19. Qd7 {[%clk 0:01:41.6]} 19... Qxc4
{[%clk 0:01:58]} 20. Qxb7 {[%clk 0:01:38]} 20... Rxa2 {[%clk 0:01:57]} 21. Rxa2
{[%clk 0:01:32.1]} 21... Qxa2 {[%clk 0:01:57.9]} 22. Rc1 {[%clk 0:01:23.3]}
22... Ba3 {[%clk 0:01:51.3]} 23. Bxa3 {[%clk 0:01:12.4]} 23... Qxa3 {[%clk
0:01:52.2]} 24. Qxc6 {[%clk 0:01:10.1]} 24... Qb2 {[%clk 0:01:48.1]} 25. f4
{[%clk 0:01:02.6]} 25... g5 {[%clk 0:01:45.8]} 26. Rc2 {[%clk 0:00:50.6]} 26...
Qd4+ {[%clk 0:01:44.5]} 27. Rf2 {[%clk 0:00:46.9]} 27... gxf4 {[%clk 0:01:43.9]}
28. gxf4 {[%clk 0:00:47.8]} 28... g6 {[%clk 0:01:43]} 29. Qe4 {[%clk 0:00:30.4]}
29... Qxe4 {[%clk 0:01:29.4]} 30. Bxe4 {[%clk 0:00:31.3]} 30... Ng7 {[%clk
0:01:29.7]} 31. Rc2 {[%clk 0:00:30.5]} 31... Nh5 {[%clk 0:01:29.5]} 32. Rf2
{[%clk 0:00:22.6]} 32... Rb8 {[%clk 0:01:30.2]} 33. Kh2 {[%clk 0:00:19.7]} 33...
Rb4 {[%clk 0:01:29.7]} 34. Bf3 {[%clk 0:00:16.8]} 34... Nxf4 {[%clk 0:01:24.9]}
35. Bg4 {[%clk 0:00:16.9]} 35... Nd3 {[%clk 0:01:21.9]} 36. Re2 {[%clk
0:00:14.1]} 36... Rb2 {[%clk 0:01:20.4]} 37. Rxb2 {[%clk 0:00:12]} 37... Nxb2
{[%clk 0:01:21.3]} 38. Be2 {[%clk 0:00:11.7]} 38... Kg7 {[%clk 0:01:15.8]} 39.
Kg3 {[%clk 0:00:12.1]} 39... Na4 {[%clk 0:01:16.1]} 40. Kf4 {[%clk 0:00:10.6]}
40... Nc3 {[%clk 0:01:16.7]} 41. Bf3 {[%clk 0:00:10.2]} 41... Kh6 {[%clk
0:01:14.6]} 42. h4 {[%clk 0:00:09.2]} 42... Nb5 {[%clk 0:01:13.3]} 43. Ke4
{[%clk 0:00:07.3]} 43... Nc7 {[%clk 0:01:05.1]} 44. Kd4 {[%clk 0:00:07.6]} 44...
Ne8 {[%clk 0:01:04.8]} 45. Kc5 {[%clk 0:00:07.5]} 45... Ng7 {[%clk 0:01:05.4]}
46. Be4 {[%clk 0:00:03.9]} 46... Kh5 {[%clk 0:01:05.5]} 47. Kd6 {[%clk
0:00:04.3]} 47... Nf5+ {[%clk 0:00:57.6]} 48. Kd7 {[%clk 0:00:04.6]} 48... Kxh4
{[%clk 0:00:54.5]} 49. Ke8 {[%clk 0:00:04.9]} 49... Nh6 {[%clk 0:00:54.5]} 50.
Kf8 {[%clk 0:00:03]} 50... Kg5 {[%clk 0:00:53.3]} 51. Kg7 {[%clk 0:00:03]} 51...
Kf4 {[%clk 0:00:39.9]} 52. Bxg6 {[%clk 0:00:01.4]} 52... fxg6 {[%clk 0:00:38.6]}
53. Kf6 {[%clk 0:00:01.6]} 53... g5 {[%clk 0:00:34.3]} 54. Kxe6 {[%clk 0:00:02]}
54... g4 {[%clk 0:00:34.9]} 55. Kf6 {[%clk 0:00:01.6]} 55... g3 {[%clk
0:00:35.4]} 56. e6 {[%clk 0:00:02.2]} 56... Nf5 {[%clk 0:00:36.1]} 0-1

[Event "Early-Titled-Tuesday-Blitz-October-10-2023"]
[Site "Chess.com"]
[Date "2023.10.10"]
[Round "3"]
[White "Khuslen2008"]
[Black "abelmat"]
[Result "1-0"]
[WhiteElo "2315"]
[BlackElo "1937"]
[TimeControl "180+1"]
[EndTime "8:28:31 PDT"]
[Termination "Khuslen2008 won by checkmate"]

1. d4 {[%clk 0:02:58]} 1... d5 {[%clk 0:02:38.7]} 2. c4 {[%clk 0:02:57]} 2... e6
{[%clk 0:02:38.6]} 3. Nc3 {[%clk 0:02:56.2]} 3... Nf6 {[%clk 0:02:38.8]} 4. cxd5
{[%clk 0:02:55.9]} 4... exd5 {[%clk 0:02:38.8]} 5. Bg5 {[%clk 0:02:55.5]} 5...
Be7 {[%clk 0:02:37.9]} 6. e3 {[%clk 0:02:55.7]} 6... O-O {[%clk 0:02:37.8]} 7.
Bd3 {[%clk 0:02:55.3]} 7... Bg4 {[%clk 0:02:36]} 8. Qb3 {[%clk 0:02:50.9]} 8...
Nc6 {[%clk 0:02:31.1]} 9. Bxf6 {[%clk 0:02:48.6]} 9... Bxf6 {[%clk 0:02:26.1]}
10. Qxd5 {[%clk 0:02:46.6]} 10... Qe7 {[%clk 0:02:22.2]} 11. Nge2 {[%clk
0:02:44.8]} 11... Nb4 {[%clk 0:02:18.2]} 12. Qe4 {[%clk 0:02:33.4]} 12... Nxd3+
{[%clk 0:02:05.7]} 13. Qxd3 {[%clk 0:02:32.4]} 13... Rad8 {[%clk 0:02:06.6]} 14.
O-O {[%clk 0:02:17]} 14... c5 {[%clk 0:02:05.9]} 15. d5 {[%clk 0:02:07]} 15...
Bh5 {[%clk 0:02:02]} 16. Nf4 {[%clk 0:02:04.3]} 16... Bg4 {[%clk 0:01:50.3]} 17.
h3 {[%clk 0:02:03.3]} 17... Bd7 {[%clk 0:01:47]} 18. Rfd1 {[%clk 0:01:57.3]}
18... a6 {[%clk 0:01:43.6]} 19. a4 {[%clk 0:01:56.5]} 19... Qe5 {[%clk
0:01:42.6]} 20. Rac1 {[%clk 0:01:54.6]} 20... Qg5 {[%clk 0:01:39.7]} 21. Ne4
{[%clk 0:01:52.4]} 21... Qh6 {[%clk 0:01:31.8]} 22. Nxf6+ {[%clk 0:01:52.2]}
22... Qxf6 {[%clk 0:01:32.7]} 23. b3 {[%clk 0:01:48.1]} 23... b6 {[%clk
0:01:25.5]} 24. Qxa6 {[%clk 0:01:45.6]} 24... Rfe8 {[%clk 0:01:19.8]} 25. a5
{[%clk 0:01:32.5]} 25... g5 {[%clk 0:01:14.1]} 26. Ne2 {[%clk 0:01:18.8]} 26...
g4 {[%clk 0:01:13.1]} 27. Qxb6 {[%clk 0:01:10.6]} 27... Qg5 {[%clk 0:01:08.4]}
28. Nf4 {[%clk 0:01:02.8]} 28... gxh3 {[%clk 0:01:05.8]} 29. g3 {[%clk
0:01:01.3]} 29... h2+ {[%clk 0:01:00.3]} 30. Kxh2 {[%clk 0:01:00.7]} 30... Re4
{[%clk 0:00:59.3]} 31. Rh1 {[%clk 0:00:32.5]} 31... Bf5 {[%clk 0:00:39.7]} 32.
a6 {[%clk 0:00:27.5]} 32... Bg4 {[%clk 0:00:23]} 33. a7 {[%clk 0:00:21.7]} 33...
Rxf4 {[%clk 0:00:21.4]} 34. exf4 {[%clk 0:00:21]} 34... Qh5+ {[%clk 0:00:18.6]}
35. Kg1 {[%clk 0:00:21.3]} 35... Qxd5 {[%clk 0:00:16]} 36. Qh6 {[%clk
0:00:15.5]} 36... f5 {[%clk 0:00:07.6]} 37. Qxh7+ {[%clk 0:00:14.6]} 37... Kf8
{[%clk 0:00:08.1]} 38. Qh6+ {[%clk 0:00:15]} 38... Ke8 {[%clk 0:00:07.7]} 39.
Qh8+ {[%clk 0:00:14.6]} 39... Kd7 {[%clk 0:00:07.8]} 40. Qe5 {[%clk 0:00:14.3]}
40... Qf3 {[%clk 0:00:05.7]} 41. Rh7+ {[%clk 0:00:13.8]} 41... Kc8 {[%clk
0:00:04.7]} 42. Qc7# {[%clk 0:00:13.7]} 1-0

[Event "Early-Titled-Tuesday-Blitz-October-10-2023"]
[Site "Chess.com"]
[Date "2023.10.10"]
[Round "3"]
[White "Aslanov_Umid"]
[Black "colegiodemadrid"]
[Result "0-1"]
[WhiteElo "2571"]
[BlackElo "2387"]
[TimeControl "180+1"]
[EndTime "8:28:32 PDT"]
[Termination "colegiodemadrid won by checkmate"]

1. e4 {[%clk 0:02:59.2]} 1... e5 {[%clk 0:02:59.4]} 2. Nf3 {[%clk 0:02:59.6]}
2... Nc6 {[%clk 0:02:59.2]} 3. Bc4 {[%clk 0:03:00.2]} 3... Bc5 {[%clk
0:02:58.1]} 4. d3 {[%clk 0:03:00.5]} 4... Nf6 {[%clk 0:02:57.3]} 5. c3 {[%clk
0:03:00.8]} 5... d6 {[%clk 0:02:55.4]} 6. O-O {[%clk 0:03:01.2]} 6... a6 {[%clk
0:02:54.7]} 7. a4 {[%clk 0:03:01.5]} 7... Ba7 {[%clk 0:02:52.3]} 8. Nbd2 {[%clk
0:02:59.5]} 8... h6 {[%clk 0:02:51]} 9. Re1 {[%clk 0:02:59.1]} 9... O-O {[%clk
0:02:49]} 10. h3 {[%clk 0:02:59.1]} 10... Kh8 {[%clk 0:02:36.8]} 11. Nf1 {[%clk
0:02:58.4]} 11... Nh7 {[%clk 0:02:31.3]} 12. Ng3 {[%clk 0:02:58.3]} 12... Ne7
{[%clk 0:02:25.3]} 13. d4 {[%clk 0:02:57.6]} 13... Ng6 {[%clk 0:02:14.8]} 14.
Be3 {[%clk 0:02:34.1]} 14... Qe8 {[%clk 0:02:06.1]} 15. Nf5 {[%clk 0:02:22.1]}
15... Ne7 {[%clk 0:01:59.9]} 16. dxe5 {[%clk 0:02:16.5]} 16... Bxe3 {[%clk
0:01:48.4]} 17. Nxe3 {[%clk 0:02:15.9]} 17... dxe5 {[%clk 0:01:43.9]} 18. Nxe5
{[%clk 0:02:16.8]} 18... Ng8 {[%clk 0:01:32.4]} 19. Qd5 {[%clk 0:02:03]} 19...
Ng5 {[%clk 0:01:20.1]} 20. f4 {[%clk 0:01:56.7]} 20... c6 {[%clk 0:01:18.7]} 21.
Qd3 {[%clk 0:01:53.9]} 21... Ne6 {[%clk 0:01:16.7]} 22. g3 {[%clk 0:01:42.5]}
22... Nc5 {[%clk 0:01:15.1]} 23. Qd4 {[%clk 0:01:42.8]} 23... Ne6 {[%clk
0:01:12.9]} 24. Bxe6 {[%clk 0:01:21.5]} 24... Bxe6 {[%clk 0:01:11.1]} 25. f5
{[%clk 0:01:20.9]} 25... Bc8 {[%clk 0:01:11.5]} 26. Nf3 {[%clk 0:01:06.4]} 26...
Nf6 {[%clk 0:01:11.5]} 27. e5 {[%clk 0:01:04.5]} 27... Nh7 {[%clk 0:01:12.1]}
28. Qf4 {[%clk 0:01:01.1]} 28... Qd8 {[%clk 0:01:10.2]} 29. Rad1 {[%clk
0:00:58.4]} 29... Qb6 {[%clk 0:01:09.6]} 30. b4 {[%clk 0:00:55.2]} 30... a5
{[%clk 0:01:07.9]} 31. f6 {[%clk 0:00:43.6]} 31... axb4 {[%clk 0:01:05.4]} 32.
fxg7+ {[%clk 0:00:43]} 32... Kxg7 {[%clk 0:01:06.3]} 33. Nh4 {[%clk 0:00:28.1]}
33... Ng5 {[%clk 0:01:03.2]} 34. Kh2 {[%clk 0:00:25.4]} 34... Rxa4 {[%clk
0:01:00.8]} 35. Qf6+ {[%clk 0:00:24.5]} 35... Kh7 {[%clk 0:00:53.2]} 36. Nhf5
{[%clk 0:00:23.7]} 36... Bxf5 {[%clk 0:00:52.2]} 37. Qxf5+ {[%clk 0:00:23]}
37... Kg8 {[%clk 0:00:49.2]} 38. Ng4 {[%clk 0:00:21.6]} 38... Ra2+ {[%clk
0:00:47.8]} 39. Kh1 {[%clk 0:00:22.2]} 39... Nh7 {[%clk 0:00:35.8]} 40. Nxh6+
{[%clk 0:00:17.8]} 40... Kg7 {[%clk 0:00:36.4]} 41. Qg4+ {[%clk 0:00:15]} 41...
Kxh6 {[%clk 0:00:36.2]} 42. Rd6+ {[%clk 0:00:14.6]} 42... f6 {[%clk 0:00:36.8]}
43. exf6 {[%clk 0:00:12.8]} 43... Nxf6 {[%clk 0:00:32.2]} 44. Rf1 {[%clk
0:00:10.6]} 44... Rf2 {[%clk 0:00:29.7]} 45. Qh4+ {[%clk 0:00:10.9]} 45... Kg6
{[%clk 0:00:29.6]} 46. Re1 {[%clk 0:00:11.1]} 46... Qc5 {[%clk 0:00:21.6]} 47.
Rd4 {[%clk 0:00:10.3]} 47... Qg5 {[%clk 0:00:18.9]} 48. Qxg5+ {[%clk 0:00:08.8]}
48... Kxg5 {[%clk 0:00:19]} 49. Rxb4 {[%clk 0:00:09.7]} 49... Rf3 {[%clk
0:00:18.5]} 50. Kg2 {[%clk 0:00:09.8]} 50... Nd5 {[%clk 0:00:18.7]} 51. Re5+
{[%clk 0:00:09.4]} 51... Kg6 {[%clk 0:00:18.4]} 52. Rxb7 {[%clk 0:00:09.3]}
52... Rf2+ {[%clk 0:00:18.2]} 53. Kg1 {[%clk 0:00:09.7]} 53... Rf1+ {[%clk
0:00:19.1]} 54. Kg2 {[%clk 0:00:10.6]} 54... R8f2# {[%clk 0:00:18.9]} 0-1

[Event "Early-Titled-Tuesday-Blitz-October-10-2023"]
[Site "Chess.com"]
[Date "2023.10.10"]
[Round "3"]
[White "valeriocarnicelli"]
[Black "DenLaz"]
[Result "0-1"]
[WhiteElo "2623"]
[BlackElo "3065"]
[TimeControl "180+1"]
[EndTime "8:28:33 PDT"]
[Termination "DenLaz won by checkmate"]

1. d4 {[%clk 0:03:00.9]} 1... Nf6 {[%clk 0:02:58.3]} 2. Nf3 {[%clk 0:03:00.9]}
2... d5 {[%clk 0:02:58.2]} 3. g3 {[%clk 0:03:00.8]} 3... Bf5 {[%clk 0:02:56.2]}
4. Bg2 {[%clk 0:03:01.7]} 4... e6 {[%clk 0:02:54.1]} 5. O-O {[%clk 0:03:01.7]}
5... h6 {[%clk 0:02:54.7]} 6. c4 {[%clk 0:03:02]} 6... c6 {[%clk 0:02:53.8]} 7.
Nc3 {[%clk 0:03:02.2]} 7... Nbd7 {[%clk 0:02:53]} 8. Qb3 {[%clk 0:03:02.2]} 8...
Qb6 {[%clk 0:02:52.3]} 9. c5 {[%clk 0:03:02.5]} 9... Qxb3 {[%clk 0:02:47.6]} 10.
axb3 {[%clk 0:03:03.4]} 10... a6 {[%clk 0:02:34.1]} 11. b4 {[%clk 0:03:03.4]}
11... Rc8 {[%clk 0:02:33.9]} 12. h3 {[%clk 0:02:50.3]} 12... Be7 {[%clk
0:02:33]} 13. g4 {[%clk 0:02:49.5]} 13... Bh7 {[%clk 0:02:31.6]} 14. Bf4 {[%clk
0:02:49.4]} 14... O-O {[%clk 0:02:30.7]} 15. Rfe1 {[%clk 0:02:21.8]} 15... Ne4
{[%clk 0:02:29.4]} 16. Nxe4 {[%clk 0:02:15.3]} 16... Bxe4 {[%clk 0:02:26.3]} 17.
Ne5 {[%clk 0:02:07]} 17... Nxe5 {[%clk 0:02:21.6]} 18. Bxe5 {[%clk 0:02:06.7]}
18... Bxg2 {[%clk 0:02:12.3]} 19. Kxg2 {[%clk 0:02:07.6]} 19... Rcd8 {[%clk
0:02:09.5]} 20. Ra3 {[%clk 0:02:02.3]} 20... f6 {[%clk 0:02:02.4]} 21. Bg3
{[%clk 0:02:01.9]} 21... Kf7 {[%clk 0:02:01.7]} 22. h4 {[%clk 0:01:55]} 22... g6
{[%clk 0:01:54.7]} 23. Rh1 {[%clk 0:01:46.6]} 23... h5 {[%clk 0:01:52.4]} 24. f3
{[%clk 0:01:41.1]} 24... Rh8 {[%clk 0:01:51.2]} 25. Rd3 {[%clk 0:01:30.1]} 25...
Rh7 {[%clk 0:01:48.3]} 26. Bf2 {[%clk 0:01:12.8]} 26... Rdh8 {[%clk 0:01:42.1]}
27. Be1 {[%clk 0:00:51.8]} 27... hxg4 {[%clk 0:01:31.3]} 28. fxg4 {[%clk
0:00:52.7]} 28... f5 {[%clk 0:01:31.8]} 29. gxf5 {[%clk 0:00:48.4]} 29... exf5
{[%clk 0:01:16.2]} 30. Rdh3 {[%clk 0:00:47.6]} 30... Bf6 {[%clk 0:01:15.4]} 31.
e3 {[%clk 0:00:42.4]} 31... Rh5 {[%clk 0:01:15.1]} 32. Bg3 {[%clk 0:00:36.3]}
32... Re8 {[%clk 0:01:10.9]} 33. Kf3 {[%clk 0:00:35.3]} 33... Re4 {[%clk
0:01:07.3]} 34. Bf4 {[%clk 0:00:34.7]} 34... Be7 {[%clk 0:01:04.1]} 35. Rg1
{[%clk 0:00:27.1]} 35... Rxh4 {[%clk 0:00:41.5]} 36. Rxh4 {[%clk 0:00:27.3]}
36... Bxh4 {[%clk 0:00:41.4]} 37. Rh1 {[%clk 0:00:28.2]} 37... g5 {[%clk
0:00:40.8]} 38. Be5 {[%clk 0:00:28.7]} 38... Kg6 {[%clk 0:00:40.9]} 39. b5
{[%clk 0:00:23.4]} 39... axb5 {[%clk 0:00:40.9]} 40. Ra1 {[%clk 0:00:22.7]}
40... g4+ {[%clk 0:00:41.3]} 41. Kg2 {[%clk 0:00:13.1]} 41... Rxe3 {[%clk
0:00:40.6]} 42. Ra7 {[%clk 0:00:13.8]} 42... Bf6 {[%clk 0:00:24.8]} 43. Bxf6
{[%clk 0:00:09.7]} 43... Kxf6 {[%clk 0:00:25.7]} 44. Rxb7 {[%clk 0:00:10.5]}
44... f4 {[%clk 0:00:26.2]} 45. Rc7 {[%clk 0:00:10.2]} 45... Re2+ {[%clk
0:00:24.9]} 46. Kf1 {[%clk 0:00:10.1]} 46... f3 {[%clk 0:00:25]} 47. Rxc6+
{[%clk 0:00:09.8]} 47... Kf5 {[%clk 0:00:25.7]} 48. Rd6 {[%clk 0:00:05.1]} 48...
g3 {[%clk 0:00:25.2]} 49. Rxd5+ {[%clk 0:00:04.7]} 49... Kf4 {[%clk 0:00:25.8]}
50. Re5 {[%clk 0:00:03.2]} 50... g2+ {[%clk 0:00:26]} 51. Kg1 {[%clk 0:00:03]}
51... Rxe5 {[%clk 0:00:25.5]} 52. dxe5 {[%clk 0:00:03.3]} 52... Kg3 {[%clk
0:00:26.2]} 53. e6 {[%clk 0:00:03.1]} 53... f2# {[%clk 0:00:26.7]} 0-1